Cogmind - Beta 13 @@@ ROGUE MODE // 2024.04.02 @ 02:27:56 Player: surprise Result: Destroyed by S-10 Pest with Light Assault Rifle Performance ------------- Evolutions (0) 0 Regions Visited (2) 400 Robots Destroyed (20) 100 Value Destroyed (368) 368 Prototype IDs (1) 20 Alien Tech Used (0) 0 Bonus (0) 0 TOTAL SCORE: 888 Bonus ------- None Cogmind --------- Core Integrity 0/250 Matter 183/300 Energy 276/280 System Corruption 0% Temperature Cool (2) Movement Walking (260) Ox2 Location -10/Mines Parts ------- > --- POWER (1) -------- Heavy Ion Engine > --- PROPULSION (2) --- Aluminum Leg Aluminum Leg > --- UTILITY (2) ------ High-capacity Storage Unit Improved Targeting Computer > --- WEAPON (2) ------- (None) > --- INVENTORY (20) --- Light Ion Engine Heavy Ion Engine Aluminum Leg Wheel Wheel Plasma Cutter Peak State ------------ > --- POWER ------------ Heavy Ion Engine > --- PROPULSION ------- Aluminum Leg Aluminum Leg > --- UTILITY ---------- Improved Targeting Computer Improved Targeting Computer > --- WEAPON ----------- EM Pulse Gun Medium Laser > --- INVENTORY -------- Light Ion Engine Wheel Wheel Grenade Launcher [Rating: 11] Favorites ----------- Power Heavy Ion Engine Engine Heavy Ion Engine Propulsion Aluminum Leg Leg Aluminum Leg Utility Improved Targeting Computer Storage High-capacity Storage Unit Processor Improved Targeting Computer Weapon EM Pulse Gun Energy Gun EM Pulse Gun Launcher Grenade Launcher Special Weapon Plasma Cutter Build | -11 -10 -10 ------- Run | Yrd Mat Min Slots Evolved . | . . . Power . | . . . Propulsion . | . . . Utility . | . . . Weapon . | . . . Parts Attached 16 | 5 9 2 Power 2 | 1 1 . Engine 2 | 1 1 . Core . | . . . Reactor . | . . . Propulsion 3 | 2 . 1 Treads . | . . . Leg 3 | 2 . 1 Wheel . | . . . Hover . | . . . Flight . | . . . Utility 3 | . 3 . Device . | . . . Storage 1 | . 1 . Processor 2 | . 2 . Hackware . | . . . Protection . | . . . Artifact . | . . . Weapon 8 | 2 5 1 Energy Gun 3 | 2 1 . Energy Cannon . | . . . Ballistic Gun . | . . . Ballistic Cannon . | . . . Launcher 3 | . 3 . Special Weapon 2 | . 1 1 Impact Weapon . | . . . Slashing Weapon . | . . . Piercing Weapon . | . . . Special Melee Weapon . | . . . Unidentified Prototypes 1 | . 1 . Parts Lost 4 | . 1 3 Power . | . . . Propulsion 1 | . . 1 Utility . | . . . Weapon 3 | . 1 2 Highest Loss Streak 3 | . 1 3 To Critical Strikes . | . . . Average Slot Usage (%) 87 | . 87 83 Engine 14 | . 14 14 Leg 28 | . 28 28 Storage 10 | . 10 14 Processor 14 | . 14 14 Energy Gun 16 | . 16 10 Launcher 1 | . 1 . Naked Turns . | . . . Heaviest Build 53 | 7 53 50 Greatest Support 20 | 20 20 20 Greatest Overweight (x) 2 | 1 2 2 Average Overweight (x) 1 | . 1 2 Largest Inventory Capacity 20 | 5 20 20 Average Capacity 15 | 5 16 20 Most Carried 7 | 5 7 7 Average Carried 4 | 2 4 6 Final Capacity 20 | 5 20 20 Final Carried 7 | 2 7 6 Class Distribution -------------------- 100% | Mutant Dominant Class ---------------- Mutant | -10/Materials Mutant | -10/Mines Resources | -11 -10 -10 ----------- Run | Yrd Mat Min Matter Collected 363 | 250 28 85 Remotely . | . . . Salvage Created 489 | 72 328 89 Parts 29 | 1 25 3 Haulers Intercepted 2 | . 2 . Recyclers Shooed 1 | . 1 . Parts Field Recycled . | . . . Retrieved Matter . | . . . Parts Self-Destructed . | . . . Prevented . | . . . Kills | -11 -10 -10 ------- Run | Yrd Mat Min Combat Hostiles Destroyed 11 | 1 8 2 Guns 3 | 1 1 1 AOE 8 | . 7 1 Classes Destroyed 7 | 2 5 . Worker 2 | 1 1 . Builder 3 | . 3 . Hauler 2 | . 2 . Recycler 1 | . 1 . Watcher 1 | . 1 . Swarmer 3 | . 3 . Grunt 8 | 1 5 2 Best Kill Streak 8 | 2 8 2 Combat Bots Only 3 | 1 3 2 Max Kills in Single Turn 2 | 1 2 1 Gunslinging . | . . . Exploded 2 | . 2 1 Melee . | . . . Uniques/NPCs Destroyed . | . . . Combat | -11 -10 -10 -------- Run | Yrd Mat Min Hostile Shots Fired 86 | 9 25 52 Missed 14 | 2 6 6 Damage Taken 785 | 113 182 490 Core 253 | 79 16 158 Absorbed by Shields . | . . . Core Remaining (%) 68 | 68 . . Volleys Fired 45 | 6 26 13 Largest 2 | 2 1 1 Hottest 100 | 90 40 100 Shots Fired 51 | 12 26 13 Gun 35 | 12 12 11 Cannon . | . . . Launcher 14 | . 14 . Special 2 | . . 2 Kinetic . | . . . Thermal 8 | 6 . 2 Explosive 14 | . 14 . Electromagnetic 29 | 6 12 11 Robot Hit Streak 9 | 5 9 6 Robot Miss Streak 7 | 2 7 3 Penetration Max . | . . . Secondary Targets . | . . . Shots Hit Robots 30 | 8 14 8 Core Hits 32 | 3 25 4 Critical Kills . | . . . Critical Parts Destroyed . | . . . Critical Strikes 2 | 2 . . Burn 2 | 2 . . Melee Attacks . | . . . Impact . | . . . Slashing . | . . . Piercing . | . . . Sneak Attacks . | . . . Combat Hostiles . | . . . Follow-up Attacks . | . . . Damage Inflicted 1363 | 171 1043 149 Guns 298 | 102 95 101 Cannons . | . . . Explosions 1065 | 69 948 48 Melee . | . . . Ramming . | . . . Kinetic . | . . . Thermal 154 | 106 . 48 Explosive 948 | . 948 . Electromagnetic 261 | 65 95 101 Impact . | . . . Slashing . | . . . Piercing . | . . . Highest Corruption . | . . . Average Corruption . | . . . Corruption Purged . | . . . Corruption Blocked . | . . . Overload Shots . | . . . Overflow Damage 38 | 8 6 24 Projectiles . | . . . Explosions 38 | 8 6 24 Melee . | . . . Knockbacks . | . . . Impact . | . . . Kinetic . | . . . Secondary . | . . . Self-Inflicted Damage 69 | 34 . 35 Shots 2 | 1 . 1 Rammed . | . . . Targets Rammed . | . . . Kicked . | . . . Crushed . | . . . Highest Temperature 216 | 216 8 155 Average Temperature 58 | 115 3 58 Received Heat Transfer 237 | 42 42 153 Siege Activations . | . . . Robots Corrupted . | . . . Combat Hostiles . | . . . Parts Fried . | . . . Impact Corruptions . | . . . Robots Melted . | . . . Combat Hostiles . | . . . Parts Melted . | . . . Heat Transferred 409 | 359 . 50 Parts Sabotaged . | . . . Parts Stolen . | . . . Parts Stripped . | . . . Power Chain Reactions 2 | 1 . 1 Alert | -11 -10 -10 ------- Run | Yrd Mat Min Peak Influence 326 | 26 326 64 Initial 16 | . 16 . Average 105 | 4 120 41 Maximum Alert Level 1 | . 1 . Low Security (%) 82 | 100 78 100 Level 1 17 | . 21 . Level 2 . | . . . Level 3 . | . . . Level 4 . | . . . Level 5 . | . . . High Security . | . . . Max Security . | . . . Squads Dispatched 2 | . 2 . Investigation . | . . . Extermination . | . . . Reinforcement 2 | . 2 . Assault . | . . . Garrison . | . . . Intercept . | . . . Searches Triggered . | . . . Construction Impeded . | . . . Haulers Reinforced . | . . . Active Scanning Responses . | . . . Cargo Convoy Interrupts . | . . . Stealth | -11 -10 -10 --------- Run | Yrd Mat Min Distress Signals . | . . . Communications Jammed . | . . . Distress Signals . | . . . Times Spotted 22 | 1 16 5 Peak Tracking Total 4 | 1 4 3 Tactical Retreats . | . . . Traps | -11 -10 -10 ------- Run | Yrd Mat Min Traps Triggered . | . . . Indirectly . | . . . Trap Hack Attempts . | . . . Triggered . | . . . Disarmed . | . . . Reprogrammed . | . . . Reused . | . . . Traps Extracted . | . . . Installed . | . . . Triggered . | . . . Machines | -11 -10 -10 ---------- Run | Yrd Mat Min Machines Disabled 1 | . 1 . Max in Single Turn 1 | . 1 . Machines Repaired . | . . . Machines Dismantled . | . . . Machines Sabotaged . | . . . Overloaded Fab Kills . | . . . Hacking | -11 -10 -10 --------- Run | Yrd Mat Min Machines Accessed 4 | . 4 . Terminals 4 | . 4 . Fabricators . | . . . Repair Stations . | . . . Recycling Units . | . . . Scanalyzers . | . . . Garrison Access . | . . . Total Hacks 12 | . 12 . Successful 5 | . 5 . Failed 7 | . 7 . Catastrophic 1 | . 1 . Database Lockouts . | . . . Manual 10 | . 10 . Terminals 12 | . 12 . Fabricators . | . . . Repair Stations . | . . . Recycling Units . | . . . Scanalyzers . | . . . Garrison Access . | . . . Terminal Hacks 2 | . 2 . Alert Level 1 | . 1 . Zone Layout 1 | . 1 . Fabricator Hacks . | . . . Repair Station Hacks . | . . . Recycling Unit Hacks . | . . . Scanalyzer . | . . . Garrison Access Hacks . | . . . Unauthorized Hacks 3 | . 3 . Terminals 3 | . 3 . Botnet 3 | . 3 . Fabricators . | . . . Repair Stations . | . . . Recycling Units . | . . . Scanalyzers . | . . . Garrison Access . | . . . Data Cores Recovered . | . . . Used . | . . . Hacking Detections 3 | . 3 . Full Trace Events . | . . . Feedback Events . | . . . Feedback Blocked . | . . . Robot Schematics Acquired . | . . . Robots Built . | . . . Authchips . | . . . Time . | . . . Total Robot Build Rating . | . . . Part Schematics Acquired . | . . . Parts Built . | . . . Authchips . | . . . Time . | . . . Total Part Build Rating . | . . . Parts Repaired . | . . . Time . | . . . Parts Recycled . | . . . Recycled Matter . | . . . Retrieved Matter . | . . . Retrieved Components . | . . . Parts Scanalyzed . | . . . Part Schematics Acquired . | . . . Parts Damaged . | . . . Bothacking | -11 -10 -10 ------------ Run | Yrd Mat Min Used RIF Installer . | . . . Robots Hacked . | . . . Non-combat . | . . . Combat . | . . . Robot Hacks Applied . | . . . Relay Couplers Released . | . . . Fabnet Peak Effective % . | . . . Robots Rewired . | . . . Allies Hacked . | . . . Hacks Repelled . | . . . Allies | -11 -10 -10 -------- Run | Yrd Mat Min Total Allies . | . . . Largest Group . | . . . Highest-Rated Group . | . . . Highest-Rated Ally . | . . . Total Orders . | . . . Ally Attacks . | . . . Total Damage . | . . . Kills . | . . . Allies Corrupted . | . . . Allies Melted . | . . . Intel | -11 -10 -10 ------- Run | Yrd Mat Min Robot Analysis Total . | . . . Derelict Logs Recovered . | . . . Drone Launches . | . . . Drone Recoveries . | . . . Exploration | -11 -10 -10 ------------- Run | Yrd Mat Min Turns Passed 1107 | 92 938 77 Spaces Moved 467 | 76 374 17 Core 51 | 51 . . Treads . | . . . Legs 416 | 25 374 17 Wheels . | . . . Hover . | . . . Flight . | . . . Fastest Speed 50 | 50 120 260 Average Speed 193 | 77 213 260 Slowest Speed 260 | 120 260 260 Overloaded Moves . | . . . Propulsion Burnouts . | . . . Robots Hopped . | . . . Cave-ins Triggered . | . . . Exploration Rate (%) 21 | 7 50 8 Regions Visited 2 Branch Regions 1 Pre-discovered Areas . | . . . Known Exits Taken . | . . . Unknown Exits Taken 2 | 1 1 . Scrap Searched . | . . . Spaces Dug . | . . . Terrain Destroyed 88 | 6 71 11 Melee . | . . . Projectile 1 | . . 1 AOE 87 | 6 71 10 Terrain Rammed . | . . . Walls Destroyed . | . . . Machines Disabled . | . . . Actions | -11 -10 -10 --------- Run | Yrd Mat Min Total 621 | 96 490 35 Wait 74 | 4 68 2 Move 465 | 75 373 17 Hop . | . . . Pick Up 16 | 6 9 1 Fast Attach 1 | 1 . . Attach 13 | 4 7 2 Detach 3 | . 3 . Swap 2 | . 2 . Drop 2 | . 2 . Fire 45 | 6 26 13 Melee . | . . . Ram . | . . . Kick . | . . . Crush . | . . . Escape Stasis . | . . . Rewire . | . . . Trap . | . . . Miscellaneous . | . . . Route ------- -11/Scrapyard -10/Materials (discovered 2 exits: [Mat] / [*Min]) -10/Mines History --------- Turn | Location | Event 2 | -11/Scrapyard | Met Revision 17 47 | -11/Scrapyard | Discovered new exit (range 8) 93 | -11/Scrapyard | Entered Materials 301 | -10/Materials | Build established: Mutant 865 | -10/Materials | Discovered new exit (range 6) 976 | -10/Materials | Discovered new exit (range 7) 1031 | -10/Materials | Entered Mines 1034 | -10/Mines | Met a Derelict bent on vengeance 1053 | -10/Mines | Core integrity fell below 50% 1094 | -10/Mines | Core integrity fell below 20% 1108 | -10/Mines | Destroyed by S-10 Pest with Light Assault Rifle Last Messages --------------- 01063_ Chain reaction triggered in Lgt. Nuclear Core. 01063_ G-47 Trooper destroyed. 01063_ Aluminum Leg destroyed. 01063_ Destroyed Aluminum Leg. 01069_ Acquired 46 matter. 01072_ Acquired 39 matter. 01077_ U-05 Engineer builds a Wall. 01077_ Acquired Aluminum Leg. 01081_ U-05 Engineer lays Concrete. 01082_ U-05 Engineer builds a Wall. 01085_ R-06 Scavenger collects Corrupted Heat Sink. 01087_ U-05 Engineer lays Concrete. 01088_ EM Pulse Gun destroyed. 01089_ U-05 Engineer builds a Wall. 01093_ U-05 Engineer lays Concrete. 01096_ U-05 Engineer builds a Wall. 01097_ Mining Laser destroyed. 01100_ U-05 Engineer builds a Wall. 01105_ U-05 Engineer lays Concrete. 01107_ U-05 Engineer builds a Wall. Map ----- +----------------------------------------------------+ | ???????????????????????????????????????? | | ???????????????????????????????????????? | | ???????????????????????????????????????? | | ???????????????????????????????????????? | | ???????????????????????????????????????? | | ???????????????????????????????????????? | | ???????????????????????????????????????? | | ???????????????????????????????????????? | | ???????????????????????????????????????? | | ???????????????????????????????????????? | | ??????????????? #??????????????????????? | | ??????????????? ##????????????????????? | | ??????????????? ##???????????????????? | | ??????????????? #???????????????????? | | ??????????????? ???????????????????? | | ??????????????? ???????????????????? | | ??????????????# ????????????????????? | | ??????????????# ????????????????????? | | ?????????????## ????????????????????? | | ?????????????# ?????????????????????? | | ?????????????? ?????????????????????? | | ?????????????? #?????????????????????? | | ?????????????? #?????????????????????? | | ??????????????# s#?????????????????????? | | ??????????????# #?????????????????????? | | ??????????????#@ #?????????????????????? | | ??????????##### #?????????????????????? | | ?????????## ## ###???????????????????? | | ?????????# #; s; #???????????????????? | | ?????????# #; s#;#???????????????????? | | ?????????# ## u## ????????????? | | ??????????# ## ###???????????? | | ??????????# ######? ##?????????????? | | ?????????# ####???? #??????????????? | | ????????# ??????? #?????????????? | | ???????# ???????? ????????????? | | ???????# #????????? ## ???????????? | | ???????## ##??????????#??? ??????????? | | ????????####???????????????????????????? | | ???????????????????????????????????????? | | ???????????????????????????????????????? | | ???????????????????????????????????????? | | ???????????????????????????????????????? | | ???????????????????????????????????????? | | ???????????????????????????????????????? | | ???????????????????????????????????????? | | ???????????????????????????????????????? | | ???????????????????????????????????????? | | ???????????????????????????????????????? | | ???????????????????????????????????????? | +----------------------------------------------------+ Best States ------------- Heat Dissipation 25 Energy Generation 14 Energy Capacity 280 Matter Stores 300 Matter Capacity 300 Sight Range 16 Terrain Scan Density 10 Evasion (%) 55 Targeting Accuracy 12 Item Schematics ----------------- None Robot Schematics ------------------ None Fabricated ------------ Nothing Alien Tech Used ----------------- None Achievements -------------- Risk Taker Challenges ------------ None Game ------ Seed EnhancedStealthStabilizer Manual? 0 Play Time 00:13:06 Cumulative 2.5 hours Start 2024.04.02 @ 02:15:29 End 2024.04.02 @ 02:27:56 Sessions 1 Manual Loads 0 Difficulty Rogue Special Mode None Game No. 13 Rogue 13 Adventurer 0 Explorer 0 Win Type - Total 0 Types 0/0/0/0/0/0/0/0/0 Lore% 8 Gallery% 5 Achievement% 8 Wizard Run 0 Options --------- Layout 0 ASCII 0 Keyboard 0 Movement Mouse Keybinds 0 Fullscreen 2 Font 24/Smallcaps Map View 76x50 Zoom Use 0% Tactical HUD 1 Map Filters NONE Filters NONE Steam 1 RUN: ab102d10-6044-4ca3-a3db-8d227f34318f